fUST/lending_fUST_20240724
["ID","MTS","AMOUNT","RATE_DAILY","PERIOD"]
[333062556,1721803842310,-500.0,0.00013698,2]
[333062557,1721803842319,-500.0,0.00013698,2]
[333062558,1721803842329,-888.84,0.00013698,2]
[333062559,1721803842340,-500.0,0.00013698,2]
[333062560,1721803842350,-500.0,0.00013698,2]
[333062561,1721803842359,-571.65,0.00013698,2]
[333062562,1721803842369,-2384.5,0.00013698,2]
[333062563,1721803842378,-1218.76,0.00013698,2]
[333062564,1721803842388,-1069.87,0.00013698,2]
[333062565,1721803842397,-500.0,0.00013698,2]
[333062566,1721803842405,-500.0,0.00013698,2]
[333062567,1721803842415,-500.0,0.00013698,2]
[333062568,1721803842424,-500.0,0.00013698,2]
[333062569,1721803842436,-500.0,0.00013698,2]
[333062570,1721803842445,-151.0,0.00013698,2]
[333062571,1721803842456,-151.0,0.00013698,2]
[333062572,1721803842465,-151.0,0.00013698,2]
[333062573,1721803842474,-151.0,0.00013698,2]
[333062574,1721803842483,-151.0,0.00013698,2]
[333062575,1721803842493,-151.0,0.00013698,2]
[333062576,1721803842502,-151.0,0.00013698,2]
[333062577,1721803842511,-151.0,0.00013698,2]
[333062578,1721803842523,-151.0,0.00013698,2]
[333062579,1721803842533,-151.0,0.00013698,2]
[333062580,1721803842542,-151.0,0.00013698,2]
[333062581,1721803842551,-288.464876,0.00013698,2]
[333062582,1721803842561,-500.0,0.00013698,2]
[333062583,1721803842571,-1174.52,0.00013698,2]
[333062584,1721803842580,-500.0,0.00013698,2]
[333062585,1721803842591,-500.0,0.00013698,2]
[333062586,1721803842602,-500.0,0.00013698,2]
[333062587,1721803842613,-500.0,0.00013698,2]
[333062588,1721803842622,-500.0,0.00013698,2]
[333062589,1721803842631,-500.0,0.00013698,2]
[333062590,1721803842640,-500.0,0.00013698,2]
[333062591,1721803842649,-500.58,0.00013698,2]
[333062592,1721803842658,-500.0,0.00013698,2]
[333062593,1721803842667,-956.24,0.00013698,2]
[333062594,1721803842676,-1124.5,0.00013698,2]
[333062595,1721803842684,-500.0,0.00013698,2]
[333062596,1721803842694,-1124.5,0.00013698,2]
[333062597,1721803842703,-1124.5,0.00013698,2]
[333062598,1721803842713,-1124.5,0.00013698,2]
[333062599,1721803842722,-184.15687208,0.00013698,2]
[333062619,1721803843599,-1790.76426018,0.00013598,2]
[333062620,1721803843609,-940.34312792,0.00013698,2]
[333062621,1721803843619,-1124.5,0.00013698,2]
[333062622,1721803843630,-417.96929083,0.00013698,2]
[333062623,1721803843642,-82.03070917,0.00013698,2]
[333062624,1721803843653,-332.93312398,0.00013698,2]
[333062632,1721803846932,61.02809613,0.0001,2]
[333062633,1721803846954,138.97190387,0.0001,2]
[333062634,1721803847004,400.0,0.0001137,2]
[333062635,1721803852297,753.50215717,9.999e-05,2]
[333062636,1721803852320,640.57551797,9.999e-05,2]
[333062637,1721803856396,403.1493765,9.999e-05,2]
[333062638,1721803912928,403.1493765,0.0001212,2]
[333062639,1721803913719,18.32308477,0.0001,2]
[333062640,1721803913743,181.67691523,0.0001,2]
[333062641,1721803914179,400.0,0.0001137,2]
[333062644,1721804324037,1000.0,0.00024,60]
[333062646,1721804827129,-403.1493765,9.999e-05,2]
[333062647,1721804827153,-200.0,0.0001,2]
[333062648,1721804827177,-400.0,0.0001137,2]
[333062649,1721804827201,-1000.0,0.00013,13]
[333062650,1721804827224,-25.91657779,0.00013147,2]
[333062651,1721804828228,-574.08342221,0.00013147,2]
[333062652,1721804828250,-200.0,0.00013425,2]
[333062653,1721804828271,-85.4686879,0.00013598,2]
[333062654,1721804948424,-968.2231781,9.999e-05,2]
[333062655,1721804948448,-200.0,0.0001,2]
[333062656,1721804948473,-400.0,0.0001137,2]
[333062657,1721804953321,200.0,0.0001,2]
[333062658,1721804954009,400.0,0.0001137,2]
[333062666,1721805009064,485.09,0.00010959,2]
[333062667,1721805019272,241.92631363,0.0001137,2]
[333062744,1721805039130,-200.0,0.00013425,2]
[333062745,1721805039140,-1102.3390802,0.00013598,2]
[333062746,1721805039149,-2901.33126444,0.00013598,2]
[333062747,1721805039160,-1566.91872771,0.00013598,2]
[333062748,1721805039171,-152848.287373,0.00013688,2]
[333062749,1721805039182,-735.22,0.00013698,2]
[333062750,1721805039194,-735.22,0.00013698,2]
[333062751,1721805039205,-735.22,0.00013698,2]
[333062752,1721805039215,-735.22,0.00013698,2]
[333062753,1721805039226,-735.22,0.00013698,2]
[333062754,1721805039236,-735.22,0.00013698,2]
[333062755,1721805039247,-735.22,0.00013698,2]
[333062756,1721805039257,-735.22,0.00013698,2]
[333062757,1721805039269,-735.22,0.00013698,2]
[333062758,1721805039281,-735.22,0.00013698,2]
[333062759,1721805039293,-735.22,0.00013698,2]
[333062760,1721805039306,-735.22,0.00013698,2]
[333062761,1721805039316,-735.22,0.00013698,2]
[333062762,1721805039329,-735.22,0.00013698,2]
[333062763,1721805039339,-735.22,0.00013698,2]
[333062764,1721805039349,-735.22,0.00013698,2]
[333062765,1721805039360,-735.22,0.00013698,2]
[333062766,1721805039371,-735.22,0.00013698,2]
[333062767,1721805039382,-735.22,0.00013698,2]
[333062768,1721805039393,-735.22,0.00013698,2]
[333062769,1721805039405,-735.22,0.00013698,2]
[333062770,1721805039417,-735.22,0.00013698,2]
[333062771,1721805039427,-735.22,0.00013698,2]
[333062772,1721805039437,-735.26,0.00013698,2]
[333062773,1721805039447,-500.0,0.00013698,2]
[333062774,1721805039458,-443.82543091,0.00013698,2]
[333062775,1721805039468,-500.0,0.00013698,2]
[333062776,1721805039480,-500.0,0.00013698,2]
[333062777,1721805039491,-500.0,0.00013698,2]
[333062778,1721805039503,-500.0,0.00013698,2]
[333062779,1721805039513,-500.0,0.00013698,2]
[333062780,1721805039525,-153.438118,0.00013698,2]
[333062781,1721805039537,-500.0,0.00013698,2]
[333062782,1721805039547,-500.0,0.00013698,2]
[333062783,1721805039557,-499.41526495,0.00013698,2]
[333062784,1721805039567,-500.0,0.00013698,2]
[333062785,1721805039579,-500.0,0.00013698,2]
[333062786,1721805039590,-500.0,0.00013698,2]
[333062787,1721805039602,-500.0,0.00013698,2]
[333062788,1721805039612,-500.0,0.00013698,2]
[333062789,1721805039624,-500.0,0.00013698,2]
[333062790,1721805039634,-500.0,0.00013698,2]
[333062791,1721805039644,-504.58950866,0.00013698,2]
[333062792,1721805039654,-500.0,0.00013698,2]
[333062793,1721805039664,-504.97738466,0.00013698,2]
[333062794,1721805039673,-503.81808785,0.00013698,2]
[333062795,1721805039683,-500.0,0.00013698,2]
[333062796,1721805039692,-500.0,0.00013698,2]
[333062797,1721805039701,-252.11257194,0.00013698,2]
[333062798,1721805039711,-500.0,0.00013698,2]
[333062799,1721805039721,-500.0,0.00013698,2]
[333062800,1721805039730,-500.0,0.00013698,2]
[333062801,1721805039741,-517.02299367,0.00013698,2]
[333062802,1721805039751,-500.0,0.00013698,2]
[333062803,1721805039761,-500.0,0.00013698,2]
[333062804,1721805039771,-500.0,0.00013698,2]
[333062805,1721805039780,-501.19729897,0.00013698,2]
[333062806,1721805039790,-500.0,0.00013698,2]
[333062807,1721805039803,-500.0,0.00013698,2]
[333062808,1721805039813,-505.32350337,0.00013698,2]
[333062809,1721805039824,-502.81567848,0.00013698,2]
[333062810,1721805039835,-501.66086037,0.00013698,2]
[333062811,1721805039845,-500.0,0.00013698,2]
[333062812,1721805039857,-500.0,0.00013698,2]
[333062813,1721805039872,-500.0,0.00013698,2]
[333062814,1721805039883,-500.0,0.00013698,2]
[333062815,1721805039895,-500.0,0.00013698,2]
[333062816,1721805039906,-275.00656869,0.00013698,2]
[333062817,1721805039917,-500.0,0.00013698,2]
[333062818,1721805039929,-500.0,0.00013698,2]
[333062819,1721805039940,-500.0,0.00013698,2]
[333062820,1721805039951,-502.58447381,0.00013698,2]
[333062821,1721805039963,-500.0,0.00013698,2]
[333062822,1721805039973,-502.03835307,0.00013698,2]
[333062823,1721805039984,-500.0,0.00013698,2]
[333062824,1721805039996,-505.55823353,0.00013698,2]
[333062825,1721805040010,-500.0,0.00013698,2]
[333062826,1721805040021,-500.0,0.00013698,2]
[333062827,1721805040033,-500.0,0.00013698,2]
[333062828,1721805040043,-500.0,0.00013698,2]
[333062829,1721805040055,-501.05858542,0.00013698,2]
[333062830,1721805040065,-306.37454547,0.00013698,2]
[333062831,1721805040075,-562.74758183,0.00013698,2]
[333062832,1721805040087,-500.0,0.00013698,2]
[333062833,1721805040098,-505.77006347,0.00013698,2]
[333062834,1721805040109,-503.45600005,0.00013698,2]
[333062835,1721805040119,-585.6963024,0.00013698,2]
[333062836,1721805040131,-366.95046056,0.00013698,2]
[333062837,1721805040142,-650.34,0.00013698,2]
[333062838,1721805040151,-500.0,0.00013698,2]
[333062839,1721805040161,-500.0,0.00013698,2]
[333062840,1721805040171,-500.0,0.00013698,2]
[333062841,1721805040180,-500.0,0.00013698,2]
[333062842,1721805040189,-500.0,0.00013698,2]
[333062844,1721805040199,-500.0,0.00013698,2]
[333062846,1721805040209,-500.48597691,0.00013698,2]
[333062847,1721805040219,-505.33677244,0.00013698,2]
[333062849,1721805040228,-500.0,0.00013698,2]
[333062851,1721805040238,-500.0,0.00013698,2]
[333062853,1721805040248,-500.42941708,0.00013698,2]
[333062854,1721805040257,-501.98865619,0.00013698,2]
[333062856,1721805040266,-500.0,0.00013698,2]
[333062858,1721805040279,-500.73758951,0.00013698,2]
[333062860,1721805040289,-501.05334008,0.00013698,2]
[333062861,1721805040300,-312.48174902,0.00013698,2]
[333062862,1721805040309,-1541.64,0.00013698,2]
[333062863,1721805040318,-501.25873738,0.00013698,2]
[333062864,1721805040328,-151.0,0.00013698,2]
[333062865,1721805040337,-151.0,0.00013698,2]
[333062866,1721805040348,-151.0,0.00013698,2]
[333062868,1721805040358,-151.0,0.00013698,2]
[333062870,1721805040368,-151.0,0.00013698,2]
[333062872,1721805040378,-151.0,0.00013698,2]
[333062874,1721805040387,-151.0,0.00013698,2]
[333062877,1721805040397,-245.707262,0.00013698,2]
[333062879,1721805040406,-500.0,0.00013698,2]
[333062882,1721805040415,-500.0,0.00013698,2]
[333062884,1721805040425,-500.0,0.00013698,2]
[333062885,1721805040436,-501.84354768,0.00013698,2]
[333062888,1721805040446,-500.0,0.00013698,2]
[333062890,1721805040455,-502.64787937,0.00013698,2]
[333062892,1721805040465,-500.21544017,0.00013698,2]
[333062894,1721805040475,-500.36184639,0.00013698,2]
[333062896,1721805040485,-500.62102875,0.00013698,2]
[333062898,1721805040495,-500.0,0.00013698,2]
[333062901,1721805040504,-500.0,0.00013698,2]
[333062904,1721805040514,-502.0639264,0.00013698,2]
[333062906,1721805040524,-500.0,0.00013698,2]
[333062907,1721805040533,-500.0,0.00013698,2]
[333062909,1721805040543,-512.72116155,0.00013698,2]
[333062911,1721805040553,-500.0,0.00013698,2]
[333062913,1721805040562,-253.62290077,0.00013698,2]
[333062919,1721805040599,200.0,0.0001,2]
[333062924,1721805040643,400.0,0.0001137,2]
[333062955,1721805043859,-600.0,0.00013147,2]
[333062956,1721805043872,-246.37709923,0.00013698,2]
[333062957,1721805043882,-500.0,0.00013698,2]
[333062958,1721805043893,-500.0,0.00013698,2]
[333062959,1721805043904,-500.0,0.00013698,2]
[333062960,1721805043915,-500.0,0.00013698,2]
[333062961,1721805043927,-425.70466051,0.00013698,2]
[333062962,1721805043938,-500.0,0.00013698,2]
[333062963,1721805043951,-504.33990908,0.00013698,2]
[333062964,1721805043961,-229.09271308,0.00013698,2]
[333062965,1721805043971,-506.72146854,0.00013698,2]
[333062966,1721805043980,-500.0,0.00013698,2]
[333062967,1721805043990,-511.16651465,0.00013698,2]
[333062968,1721805044001,-502.28130709,0.00013698,2]
[333062969,1721805044011,-589.49,0.00013698,2]
[333062970,1721805044020,-503.83196702,0.00013698,2]
[333062971,1721805044030,-1209.64,0.00013698,2]
[333062972,1721805044039,-397.51229781,0.00013698,2]
[333063024,1721805046771,-102.48770219,0.00013698,2]
[333063026,1721805046781,-300.8070146,0.00013698,2]
[333063046,1721805051339,130.64252893,0.0001,2]
[333063047,1721805051363,69.35747107,0.0001,2]
[333063048,1721805051555,392.63977075,0.0001137,2]
[333063049,1721805105950,200.0,0.0001,2]
[333063050,1721805106301,100.31336214,0.0001137,2]
[333063051,1721805106324,299.68663786,0.0001137,2]
[333063052,1721805115902,157.59557264,9.999e-05,2]
[333063053,1721805128560,154.82195475,9.999e-05,2]
[333063054,1721805135667,459.13593927,9.999e-05,2]
[333063055,1721805138725,285.13005099,9.999e-05,2]
[333063060,1721805530180,-300.0,9.998e-05,2]
[333063061,1721805530216,-762.31060396,9.999e-05,2]
[333063062,1721805530251,-609.4056805,9.999e-05,2]
[333063063,1721805530286,-156.50667326,9.999e-05,2]
[333063064,1721805530320,-524.82337153,9.999e-05,2]
[333063065,1721805530355,-154.94618827,9.999e-05,2]
[333063066,1721805530390,-403.25052629,9.999e-05,2]
[333063067,1721805530426,-240.4541076,9.999e-05,2]
[333063068,1721805530461,-887.31675178,9.999e-05,2]
[333063069,1721805530500,-404.3074502,9.999e-05,2]
[333063070,1721805530534,-1428.56408637,9.999e-05,2]
[333063071,1721805530568,-188.02900327,9.999e-05,2]
[333063072,1721805530601,-1103.35902649,9.999e-05,2]
[333063073,1721805530635,-162.87421769,9.999e-05,2]
[333063074,1721805530670,-282.05564926,0.0001,2]
[333063075,1721805530703,-200.0,0.0001,2]
[333063076,1721805530739,-200.0,0.0001,2]
[333063077,1721805530787,154.72922386,9.999e-05,2]
[333063078,1721805533915,287.50535018,0.0001,2]
[333063079,1721805542990,156.43671221,9.999e-05,2]
[333063080,1721805543374,180.28036357,9.999e-05,2]
[333063081,1721805543967,154.87207291,9.999e-05,2]
[333063082,1721805544795,941.73928157,9.999e-05,2]
[333063083,1721805546280,163.171896,9.999e-05,2]
[333063084,1721805546417,543.32022907,9.999e-05,2]
[333063085,1721805551089,218.09499306,9.999e-05,2]
[333063086,1721805552125,6754.6652373,9.999e-05,2]
[333063087,1721805555323,208.57429241,9.999e-05,2]
[333063088,1721805556701,154.8734182,9.999e-05,2]
[333063089,1721805558868,154.77615322,9.999e-05,2]
[333063090,1721805559427,1625.75328864,9.999e-05,2]
[333063091,1721805560222,413.45473308,9.999e-05,2]
[333063092,1721805561094,154.77503765,9.999e-05,2]
[333063093,1721805563200,159.99048305,9.999e-05,2]
[333063094,1721805564952,600.19386734,9.999e-05,2]
[333063095,1721805566728,155.89662233,9.999e-05,2]
[333063096,1721805566903,162.55898954,9.999e-05,2]
[333063097,1721805570433,1625.75328864,9.999e-05,2]
[333063098,1721805571272,270.94731978,9.999e-05,2]
[333063099,1721805572537,525.17212073,9.999e-05,2]
[333063100,1721805573499,567.94371923,9.999e-05,2]
[333063101,1721805576005,209.63850314,9.999e-05,2]
[333063102,1721805583458,200.0,0.0001,2]
[333063103,1721805606332,200.0,0.0001,2]
[333063104,1721805616341,2106.31551891,9.999e-05,2]
[333063105,1721805617358,154.83444648,9.999e-05,2]
[333063106,1721805626046,287.40421504,0.0001,2]
[333063107,1721805632039,404.37594786,9.999e-05,2]
[333063108,1721805633911,15593.74933853,9.999e-05,2]
[333063109,1721805675257,-300.0,9.998e-05,2]
[333063110,1721805675293,-2700.0,9.999e-05,2]
[333063113,1721806041168,-300.0,9.998e-05,2]
[333063114,1721806041192,-427.9438617,9.999e-05,2]
[333063118,1721806147127,-300.0,9.998e-05,2]
[333063119,1721806147149,-721.23285786,9.999e-05,2]
[333063120,1721806147175,-403.29212142,9.999e-05,2]
[333063121,1721806147201,-156.56045866,9.999e-05,2]
[333063122,1721806147226,-941.43835901,9.999e-05,2]
[333063123,1721806147248,-404.23895254,9.999e-05,2]
[333063124,1721806147275,-403.1493765,9.999e-05,2]
[333063125,1721806147297,-208.50808061,9.999e-05,2]
[333063126,1721806147321,-296.47549525,0.0001,2]
[333063127,1721806147344,-200.0,0.0001,2]
[333063128,1721806147370,-3763.6652717,0.00010121,2]
[333063129,1721806147394,-250.0,0.00010646,2]
[333063130,1721806147417,-250.0,0.00010928,2]
[333063131,1721806147441,-250.0,0.00010958,2]
[333063132,1721806147466,-503.71,0.00010959,2]
[333063133,1721806147492,-250.0,0.00010988,2]
[333063134,1721806147518,-250.0,0.00011018,2]
[333063135,1721806147542,-250.0,0.00011048,2]
[333063136,1721806147566,-250.0,0.00011078,2]
[333063137,1721806147594,-250.0,0.00011108,2]
[333063138,1721806147618,-250.0,0.00011138,2]
[333063139,1721806147640,-350.0,0.0001115,2]
[333063140,1721806147664,-250.0,0.00011168,2]
[333063141,1721806147689,-250.0,0.00011198,2]
[333063142,1721806147714,-250.0,0.00011228,2]
[333063143,1721806147740,-24900.0,0.00011236,2]
[333063144,1721806147765,-250.0,0.00011258,2]
[333063145,1721806147791,-250.0,0.00011288,2]
[333063146,1721806147814,-250.0,0.00011318,2]
[333063147,1721806147838,-250.0,0.00011348,2]
[333063148,1721806147860,-400.0,0.0001137,2]
[333063149,1721806147888,-250.0,0.00011378,2]
[333063150,1721806147911,-250.0,0.00011408,2]
[333063151,1721806147934,-250.0,0.00011438,2]
[333063152,1721806147957,-250.0,0.00011468,2]
[333063153,1721806147981,-250.0,0.00011498,2]
[333063154,1721806148006,-1023.91155908,0.0001212,2]
[333063155,1721806148031,-1023.91155908,0.0001212,2]
[333063156,1721806168688,200.0,0.0001,2]
[333063157,1721806168746,400.0,0.0001137,2]
[333063158,1721806198583,403.1493765,0.0001212,2]
[333063160,1721806213474,248.82,0.00010959,2]
[333063161,1721806217432,248.0306235,0.00012475,2]
[333063206,1721806233979,-5801.981,0.00012475,2]
[333063231,1721806240444,-3953.14874133,0.00012475,2]
[333063233,1721806242771,200.0,0.0001,2]
[333063234,1721806243059,400.0,0.0001137,2]
[333063289,1721806244181,-954.95847251,0.00012475,2]
[333063315,1721806290256,154.72922386,9.999e-05,2]
[333063316,1721806291044,403.1493765,9.999e-05,2]
[333063317,1721806294866,359.50269258,9.999e-05,2]
[333063318,1721806294887,582.23658899,9.999e-05,2]
[333063319,1721806296326,234.88530218,0.0001,2]
[333063320,1721806297235,413.45473308,9.999e-05,2]
[333063321,1721806298136,156.77566317,9.999e-05,2]
[333063322,1721806315748,223.49808847,9.999e-05,2]
[333063323,1721806315770,235.6378508,9.999e-05,2]
[333063324,1721806317539,243.32878953,9.999e-05,2]
[333063325,1721806318695,278.18201469,0.0001,2]
[333063326,1721806320370,200.0,0.0001,2]
[333063327,1721806320624,400.0,0.0001137,2]
[333063328,1721806328947,247.55158444,9.999e-05,2]
[333063331,1721807247103,-97.98954947,9.999e-05,2]
[333063332,1721807247124,-224.31417912,9.999e-05,2]
[333063333,1721807247145,-403.1493765,9.999e-05,2]
[333063334,1721807247165,-154.77557542,9.999e-05,2]
[333063335,1721807247187,-200.0,0.0001,2]
[333063336,1721807247208,-400.0,0.0001137,2]
[333063337,1721807247232,-1.07131949,0.00011924,2]
[333063340,1721807250092,-298.92868051,0.00011924,2]
[333063341,1721807250117,-243.0,0.00011924,2]
[333063342,1721807250140,-355.77256106,0.00011925,2]
[333063346,1721807354130,-887.31675178,9.999e-05,2]
[333063347,1721807354152,-200.0,0.0001,2]
[333063348,1721807354175,-300.0,0.00011004,2]
[333063349,1721807354200,-24900.0,0.00011005,2]
[333063350,1721807354226,-400.0,0.0001137,2]
[333063351,1721807354249,-2736.8027557,0.00012048,2]
[333063352,1721807354275,-4609.50550524,0.00012125,2]
[333063353,1721807354299,-320.41934026,0.00012205,2]
[333063354,1721807354320,-150.44770355,0.0001226,2]
[333063355,1721807354340,-299.99999901,0.000123,2]
[333063356,1721807363542,1004.06794446,0.00011925,2]
[333063357,1721807363566,390.00973068,0.00011925,2]
[333063358,1721807370027,200.0,0.0001,2]
[333063359,1721807370131,400.0,0.0001137,2]
[333063360,1721807371114,-3974.60284304,0.00012329,7]
[333063361,1721807384311,17.13912252,9.999e-05,2]
[333063362,1721807384333,183.86289023,9.999e-05,2]
[333063364,1721807405110,403.1493765,9.999e-05,2]
[333063388,1721807431993,-2070.25333915,0.00012329,7]
[333063390,1721807432005,-255.8206844,0.000124,2]
[333063392,1721807432014,-206.6937542,0.000124,2]
[333063394,1721807432023,-206.4497672,0.000124,2]
[333063396,1721807432032,-153.0,0.000124,2]
[333063398,1721807432041,-306.0,0.000124,2]
[333063400,1721807432050,-1000.0,0.00013,13]
[333063402,1721807432059,-4857.45659234,0.00013,2]
[333063443,1721807438727,-285.32520784,0.00013,2]
[333063493,1721807443664,-45.42575061,0.00013,2]
[333063497,1721807447468,200.0,0.0001,2]
[333063498,1721807447619,231.72103923,0.0001137,2]
[333063513,1721808552126,-203.80341,9.998e-05,2]
[333063514,1721808560150,-96.19659,9.998e-05,2]
[333063515,1721808560171,-300.0,9.998e-05,2]
[333063516,1721808560191,-403.1493765,9.999e-05,2]
[333063517,1721808560212,-459.13593927,9.999e-05,2]
[333063518,1721808560231,-300.63824735,9.999e-05,2]
[333063519,1721808560251,-521.35008694,9.999e-05,2]
[333063520,1721808560270,-848.60176643,9.999e-05,2]
[333063521,1721808560293,-778.93457464,9.999e-05,2]
[333063522,1721808560313,-157.03668957,9.999e-05,2]
[333063523,1721808560333,-154.77557542,9.999e-05,2]
[333063524,1721808560353,-188.05852618,9.999e-05,2]
[333063525,1721808560371,-404.26765741,9.999e-05,2]
[333063526,1721808560390,-160.01535024,9.999e-05,2]
[333063527,1721808560410,-519.10656917,9.999e-05,2]
[333063528,1721808560429,-154.76012181,9.999e-05,2]
[333063529,1721808560449,-531.42041871,9.999e-05,2]
[333063530,1721808560469,-302.22261318,9.999e-05,2]
[333063531,1721808560489,-600.13398143,9.999e-05,2]
[333063532,1721808560509,-159.31280748,9.999e-05,2]
[333063533,1721808560529,-180.30966093,9.999e-05,2]
[333063534,1721808560551,-311.40859898,9.999e-05,2]
[333063535,1721808560572,-155.13081685,9.999e-05,2]
[333063536,1721808560592,-253.64151951,9.999e-05,2]
[333063537,1721808560612,-309.52024362,9.999e-05,2]
[333063538,1721808560632,-375.56627462,9.999e-05,2]
[333063539,1721808560651,-725.46017295,9.999e-05,2]
[333063540,1721808560671,-493.769143,9.999e-05,2]
[333063541,1721808560691,-413.45280147,9.999e-05,2]
[333063542,1721808560712,-248.85342551,9.999e-05,2]
[333063543,1721808560733,-223.90621696,9.999e-05,2]
[333063544,1721808560752,-160.37691106,9.999e-05,2]
[333063545,1721808560772,-154.92212752,9.999e-05,2]
[333063546,1721808560793,-663.44744723,9.999e-05,2]
[333063547,1721808560813,-156.5852552,9.999e-05,2]
[333063548,1721808560833,-155.89399445,9.999e-05,2]
[333063549,1721808560853,-154.76012181,9.999e-05,2]
[333063550,1721808560873,-240.57760982,9.999e-05,2]
[333063551,1721808560896,-154.76012181,9.999e-05,2]
[333063552,1721808560920,-567.88989652,9.999e-05,2]
[333063553,1721808560943,-154.74467129,9.999e-05,2]
[333063554,1721808560962,-179.85223788,9.999e-05,2]
[333063555,1721808560982,-154.74467129,9.999e-05,2]
[333063556,1721808561003,-610.9159927,9.999e-05,2]
[333063557,1721808561026,-154.76012181,9.999e-05,2]
[333063558,1721808561051,-941.66960481,9.999e-05,2]
[333063559,1721808561073,-887.31675178,9.999e-05,2]
[333063560,1721808561095,-154.76012181,9.999e-05,2]
[333063561,1721808561118,-154.78996421,9.999e-05,2]
[333063562,1721808561139,-208.57429241,9.999e-05,2]
[333063563,1721808561160,-196.26871937,9.999e-05,2]
[333063564,1721808561183,-154.80649189,0.0001,2]
[333063565,1721808561207,-154.71377951,0.0001,2]
[333063566,1721808561228,-200.0,0.0001,2]
[333063567,1721808561252,-19865.75332769,0.00010174,2]
[333063568,1721808573176,-206.66855922,9.999e-05,2]
[333063569,1721808573197,-155.30077914,9.999e-05,2]
[333063570,1721808573220,-5034.24667231,0.00010174,2]
[333063571,1721808573246,-223.42,0.00010959,2]
[333063572,1721808573271,-186.19,0.00010959,2]
[333063573,1721808573293,-155.15,0.00010959,2]
[333063574,1721808573316,-775.8,0.00010959,2]
[333063575,1721808573339,-420.0,0.00010998,2]
[333063576,1721808573362,-300.0,0.00010998,2]
[333063577,1721808573385,-400.0,0.0001137,2]
[333063578,1721808573407,-2735.73396209,0.0001137,2]
[333063579,1721808573430,-19446.13303705,0.0001137,2]
[333063580,1721808573452,-2106.92015174,0.0001137,2]
[333063581,1721808573475,-218.09499306,0.0001137,2]
[333063582,1721808573503,-3782.30442803,0.0001137,2]
[333063583,1721808573526,-226.54771123,0.0001137,2]
[333063584,1721808573551,-1625.75328864,0.0001137,2]
[333063585,1721808573575,-250.0,0.00011378,2]
[333063586,1721808573599,-250.0,0.0001141,2]
[333063587,1721808573625,-350.0,0.00011422,2]
[333063588,1721808573647,-250.0,0.00011441,2]
[333063589,1721808573668,-250.0,0.00011472,2]
[333063590,1721808573690,-250.0,0.00011503,2]
[333063591,1721808573712,-250.0,0.00011535,2]
[333063592,1721808573734,-250.0,0.00011566,2]
[333063593,1721808573756,-250.0,0.00011597,2]
[333063594,1721808573780,-250.0,0.00011628,2]
[333063595,1721808573804,-250.0,0.00011659,2]
[333063596,1721808573826,-250.0,0.00011691,2]
[333063597,1721808573847,-250.0,0.00011722,2]
[333063598,1721808573871,-250.0,0.00011753,2]
[333063599,1721808573893,-250.0,0.00011784,2]
[333063600,1721808573915,-250.0,0.00011815,2]
[333063601,1721808573939,-250.0,0.00011847,2]
[333063602,1721808573962,-250.0,0.00011878,2]
[333063603,1721808573984,-250.0,0.00011909,2]
[333063604,1721808574006,-250.0,0.0001194,2]
[333063605,1721808574031,-250.0,0.00011971,2]
[333063606,1721808574058,-587.0,0.00012098,2]
[333063607,1721808574312,533.28027744,9.999e-05,2]
[333063608,1721808590409,154.72922386,9.999e-05,2]
[333063609,1721808607215,200.4627895,0.00012257,2]
[333063610,1721808607331,287.42676554,0.0001,2]
[333063611,1721808610575,153.26453204,0.00012257,2]
[333063612,1721808610597,35.76413906,0.00012257,2]